[Event "Torneio Nacional Honour 2017-18"]
[Site "Cascais"]
[Date "2018.08.13"]
[Round "4"]
[White "Santos, Jose Barria"]
[Black "Santos, Isabel"]
[Result "0-1"]
[ECO "B17"]
[WhiteElo "2062"]
[BlackElo "2005"]
[Annotator "NA RC"]
[PlyCount "122"]
[EventDate "2018.08.11"]
[EventType "tourn"]
[EventCountry "POR"]
[SourceTitle "playchess.com"]
[Source "ChessBase"]
[SourceQuality "1"]
[TimeControl "5400+30"]

1. e4 {[%emt 0:00:00]} c6 {[%emt 0:07:04]} 2. d4 {[%emt 0:00:00]} d5 {[%emt 0:00:10]} 3. Nc3 {[%emt 0:00:04]} dxe4 {[%emt 0:01:19]} 4. Nxe4 {[%emt 0:00:08]} Nd7 {[%emt 0:00:08]} 5. Nf3 {[%emt 0:00:10]} Ngf6 {[%emt 0:00:06]} 6. Ng3 {[%emt 0:00:10]} e6 {[%emt 0:00:08]} 7. Bd3 {[%emt 0:00:24]} c5 {[%emt 0:00:27]} 8. c3 {[%emt 0:02:44]} Be7 {[%emt 0:02:44]} 9. O-O {[%emt 0:00:21]} O-O {[%emt 0:00:08]} 10. Re1 {[%emt 0:00:40]} b6 {[%emt 0:03:49]} 11. Qe2 {[%emt 0:06:02]} Nd5 $146 {[%emt 0:03:43] [#] B17: Caro-Kann: Modern Line (4...Nd7)} ({Predecessor:} 11... Bb7 12. dxc5 Nxc5 13. Bc2 Qc7 14. c4 Rad8 15. b3 a5 16. Bb2 Qf4 17. Be5 Bxf3 18. Bxf4 Bxe2 19. Rxe2 {½-½ (48) Tiviakov,S (2643)-Navara,D (2656) Heraklio 2007}) 12. Bd2 {[%emt 0:06:23]} ({Keinesfalls} 12. Qe4 $6 N7f6 $14) ({Der einzige Zug:} 12. c4 $1 $18 {[%cal Rc4d5]} Nc7 13. Be4 (13. Qe4 f5 $16)) 12... Bb7 {[%emt 0:05:16]} 13. Rad1 {[%emt 0:02:08]} Qc7 {[%emt 0:06:35]} 14. Bc2 {[%emt 0:39:29]} Rad8 {[%emt 0:08:31]} 15. a3 {[%emt 0:06:21]} N7f6 {[%emt 0:02:09]} 16. dxc5 {[%emt 0:05:16]} Bxc5 {[%emt 0:01:49]} 17. Ne5 {[%emt 0:01:08]} a5 {[%emt 0:17:23]} 18. c4 {[%emt 0:07:09]} Ne3 {[%emt 0:11:36]} 19. Bxe3 {[%emt 0:02:10]} Qxe5 {[%emt 0:00:03]} 20. Bxc5 {[%emt 0:08:56]} Qxc5 {[%emt 0:00:06]} 21. h3 {[%emt 0:05:28]} Ba6 {[%emt 0:01:37]} 22. Bd3 {[%emt 0:01:17]} Rc8 {[%emt 0:00:12]} 23. Ne4 {[%emt 0:01:49]} Nxe4 {[%emt 0:03:32]} 24. Qxe4 {[%emt 0:00:07]} g6 {[%emt 0:00:14]} 25. Bf1 {[%emt 0:02:20]} Rc7 {[%emt 0:02:32]} 26. Qb1 {[%emt 0:00:30]} Qe7 {[%emt 0:04:13]} 27. c5 {[%emt 0:01:36]} Bxf1 {[%emt 0:00:46]} 28. cxb6 {[%emt 0:00:03]} Rb7 {[%emt 0:00:49]} 29. Kxf1 {[%emt 0:00:13]} Rxb6 {[%emt 0:00:17]} 30. Rd2 {[%emt 0:00:25]} Rfb8 {[%emt 0:00:04]} 31. Qc1 {[%emt 0:00:21]} Qf6 {[%emt 0:01:01]} 32. Ree2 {[%emt 0:00:18]} Kg7 {[%emt 0:04:39]} 33. Kg1 {[%emt 0:00:04]} Rb3 {[%emt 0:00:27]} 34. Rc2 {[%emt 0:01:45]} R8b5 {[%emt 0:01:07]} 35. Rcd2 {[%emt 0:00:58]} Qg5 {[%emt 0:01:38]} 36. Kh1 {[%emt 0:00:30]} Qf6 {[%emt 0:04:35]} 37. Rc2 {[%emt 0:00:24]} g5 {[%emt 0:01:46]} 38. Kg1 {[%emt 0:00:26]} h5 {[%emt 0:01:20]} 39. Red2 {[%emt 0:00:42]} g4 {[%emt 0:01:32]} 40. hxg4 {[%emt 0:00:15]} hxg4 {[%emt 0:00:05]} 41. Rc3 {[%emt 0:00:21]} Rxc3 {[%emt 0:01:22]} 42. Qxc3 {[%emt 0:00:20]} Qxc3 {[%emt 0:00:27]} 43. bxc3 {[%emt 0:00:03]} Rb3 {[%emt 0:00:04]} 44. Rd4 {[%emt 0:00:07]} f5 {[%emt 0:00:11]} 45. Ra4 {[%emt 0:00:28]} Rxc3 {[%emt 0:00:29]} 46. Rxa5 {[%emt 0:00:03]} g3 {[%emt 0:00:48]} 47. fxg3 {[%emt 0:00:02]} Rxg3 {[%emt 0:00:08]} 48. Kf2 {[%emt 0:00:03]} Rb3 {[%emt 0:00:35]} 49. a4 {[%emt 0:00:02]} Kf6 {[%emt 0:01:13]} 50. Ra8 {[%emt 0:02:19]} Ra3 {[%emt 0:00:05]} 51. a5 {[%emt 0:00:03]} Ke5 {[%emt 0:00:06]} 52. a6 {[%emt 0:00:07]} Kf4 {[%emt 0:00:27]} 53. a7 {[%emt 0:00:56]} Ra2+ {[%emt 0:00:48]} 54. Ke1 {[%emt 0:01:24]} e5 {[%emt 0:00:18]} 55. Kf1 {[%emt 0:01:00]} Ke3 {[%emt 0:00:18]} 56. g3 {[%emt 0:00:47] [#]} e4 $2 {[%emt 0:00:48]} (56... Kf3 $1 $19 {[%cal Ra2a1]} 57. Ke1 e4) 57. Rf8 $1 {[%emt 0:00:22]} Rxa7 {[%emt 0:00:30]} 58. Rxf5 {[%emt 0:00:05]} Ra1+ {[%emt 0:02:18]} 59. Kg2 {[%emt 0:00:05]} Ke2 {[%emt 0:00:21]} 60. Rf2+ {[%emt 0:01:01]} Kd3 {[%emt 0:00:07]} 61. Rf1 $2 {[%emt 0:00:46]} (61. Rf6 $11) 61... Rxf1 {[%emt 0:00:21]} 0-1

[Event "Torneio Nacional Honour 2017-18"]
[Site "Cascais"]
[Date "2018.08.13"]
[Round "4"]
[White "Guia, Artur Solovyov Eloy"]
[Black "Sa, Claudio Simao Carva"]
[Result "1/2-1/2"]
[ECO "C01"]
[WhiteElo "1818"]
[BlackElo "1790"]
[Annotator "NA RC"]
[PlyCount "63"]
[EventDate "2018.08.11"]
[EventType "tourn"]
[EventCountry "POR"]
[SourceTitle "playchess.com"]
[Source "ChessBase"]
[SourceQuality "1"]
[TimeControl "5400+30"]

1. e4 {[%emt 0:00:00]} e6 {[%emt 0:02:50]} 2. d4 {[%emt 0:00:00]} d5 {[%emt 0:00:13]} 3. exd5 {[%emt 0:00:00]} exd5 {[%emt 0:00:07]} 4. Bd3 {[%emt 0:00:00]} Nc6 {[%emt 0:00:17] LiveBook: 617 Games} 5. c3 {[%emt 0:00:00]} Bd6 {[%emt 0:00:10]} 6. Nf3 {[%emt 0:00:02]} Bg4 {[%emt 0:00:27]} 7. O-O {[%emt 0:00:10]} Nge7 {[%emt 0:01:03]} 8. Re1 {[%emt 0:00:14]} Qd7 {[%emt 0:00:36]} 9. a4 {[%emt 0:00:12] C01: French: Exchange Variation} (9. Nbd2 f6 10. b4 O-O 11. Nf1 Rae8 12. a4 Ng6 13. Ne3 Be6 14. g3 Nce7 15. Ra2 Nf5 16. Ng2 Bf7 17. Rae2 Rxe2 18. Rxe2 Re8 {½-½ (40) Leko,P (2731)-Morozevich,A (2724) Sochi 2014}) 9... O-O {[%emt 0:00:56]} 10. Na3 {[%emt 0:00:05]} a6 {[%emt 0:00:51]} 11. Nc2 {[%emt 0:00:21]} f5 $146 {[%emt 0:03:13]} ({Predecessor:} 11... Kh8 12. Ne3 Bh5 13. Nf1 f6 14. Ng3 Bg6 15. Ne2 Bxd3 16. Qxd3 {½-½ (71) Tavoularis,N (2167)-Westerberg,J (2397) Budapest 2014}) 12. Ne3 {[%emt 0:03:26]} f4 {[%emt 0:11:20]} 13. Nxg4 {[%emt 0:04:52]} Qxg4 {[%emt 0:00:13]} 14. h3 {[%emt 0:00:55]} Qh5 $11 {[%emt 0:02:24] keeps the balance.} 15. Nd2 {[%emt 0:02:11]} Qh4 {[%emt 0:04:13]} 16. Nf3 {[%emt 0:00:10]} Qf6 {[%emt 0:01:00]} 17. Qc2 {[%emt 0:00:28]} h6 {[%emt 0:01:26]} 18. b3 {[%emt 0:03:22]} Nd8 {[%emt 0:02:14]} 19. Ba3 {[%emt 0:00:43]} Nf7 {[%emt 0:03:23]} 20. Bxd6 {[%emt 0:00:26]} cxd6 {[%emt 0:00:32]} 21. Qe2 {[%emt 0:00:40]} Ng6 {[%emt 0:29:47]} 22. Qe6 {[%emt 0:01:49]} Nge5 {[%emt 0:00:24]} 23. Qxf6 {[%emt 0:00:35]} Nxf3+ {[%emt 0:00:07]} 24. gxf3 {[%emt 0:00:23]} gxf6 {[%emt 0:00:02]} 25. Re7 {[%emt 0:01:32]} Ng5 {[%emt 0:01:31]} 26. Kg2 {[%emt 0:00:16]} Rf7 {[%emt 0:00:50] [#]} 27. Rae1 $1 {[%emt 0:00:21]} Kf8 {[%emt 0:00:11]} 28. Rxf7+ {[%emt 0:00:37]} ({Better is} 28. R7e2 $18) 28... Kxf7 {[%emt 0:03:03]} 29. h4 {[%emt 0:06:23]} Ne6 $16 {[%emt 0:00:07]} 30. Bf5 {[%emt 0:06:10]} Ng7 {[%emt 0:01:07]} 31. Bd3 {[%emt 0:00:16]} f5 {[%emt 0:05:36]} 32. Kf1 {[%emt 0:05:00]} 1/2-1/2

[Event "Torneio Nacional Honour 2017-18"]
[Site "Cascais"]
[Date "2018.08.13"]
[Round "4"]
[White "De Moura, Fernando Alves"]
[Black "Godinho Marques, Pedro"]
[Result "1/2-1/2"]
[ECO "C54"]
[WhiteElo "1814"]
[BlackElo "1862"]
[Annotator "NA RC"]
[PlyCount "139"]
[EventDate "2018.08.11"]
[EventType "tourn"]
[EventCountry "POR"]
[SourceTitle "playchess.com"]
[Source "ChessBase"]
[SourceQuality "1"]
[TimeControl "5400+30"]

1. e4 {[%emt 0:00:00]} e5 {[%emt 0:00:41]} 2. Nf3 {[%emt 0:01:20]} Nc6 {[%emt 0:00:08]} 3. Bc4 {[%emt 0:00:15]} Bc5 {[%emt 0:01:03]} 4. c3 {[%emt 0:00:24]} Nf6 {[%emt 0:01:52]} 5. d3 {[%emt 0:02:39]} h6 {[%emt 0:03:47]} 6. a4 {[%emt 0:02:09] C54: Giuoco Piano: 4 c3 Nf6, main lines with 5 d4 and 5 d3} (6. b4 Bb6 7. a4 a6 8. O-O O-O 9. Bb3 d6 10. Nbd2 Be6 11. Bxe6 fxe6 12. Nc4 Ba7 13. Qb3 Qe8 14. Be3 Bxe3 15. Nxe3 {½-½ (54) Rapport,R (2707)-Safarli,E (2639) Riadh 2017}) 6... a5 {[%emt 0:03:21]} 7. Na3 {[%emt 0:11:01]} d6 {[%emt 0:04:18]} 8. Nc2 {[%emt 0:01:56]} Qe7 $146 {[%emt 0:02:29]} ({Predecessor:} 8... d5 9. exd5 Nxd5 10. Ne3 Nf4 11. O-O O-O 12. g3 Nh3+ 13. Kg2 Qd6 {1-0 (34) Nebolsina,V (2285)-Motycakova,M (2162) Reykjavik 2017}) 9. Be3 {[%emt 0:07:36]} Be6 {[%emt 0:07:21]} 10. Bb5 {[%emt 0:08:06]} Bxe3 {[%emt 0:04:39]} 11. Nxe3 {[%emt 0:01:28]} O-O {[%emt 0:00:49]} 12. O-O {[%emt 0:05:31]} Ng4 {[%emt 0:04:37]} 13. Nd5 {[%emt 0:03:49]} Qd8 {[%emt 0:03:30]} 14. h3 {[%emt 0:01:52]} Nf6 {[%emt 0:00:25]} 15. Bc4 {[%emt 0:01:46]} Bxd5 {[%emt 0:03:03]} 16. exd5 {[%emt 0:02:26]} Ne7 {[%emt 0:00:13]} 17. Qb3 {[%emt 0:00:30]} c6 {[%emt 0:03:49]} 18. d4 {[%emt 0:06:13]} cxd5 {[%emt 0:01:35]} 19. Bb5 {[%emt 0:00:16]} e4 {[%emt 0:00:41]} 20. Ne1 {[%emt 0:02:09]} Nf5 {[%emt 0:05:12]} 21. Nc2 {[%emt 0:01:12]} Qe7 {[%emt 0:09:46]} 22. Rae1 {[%emt 0:00:49]} Qc7 {[%emt 0:04:09]} 23. Ne3 {[%emt 0:00:58]} Ne7 {[%emt 0:00:53]} 24. Qd1 {[%emt 0:03:42]} Qc8 {[%emt 0:03:38]} 25. Be2 {[%emt 0:02:57]} Nh7 {[%emt 0:01:06]} 26. Qb3 {[%emt 0:03:43]} Nf6 {[%emt 0:02:38]} 27. Qd1 {[%emt 0:02:05]} Kh8 {[%emt 0:00:30]} 28. Kh2 {[%emt 0:02:24]} Qe6 {[%emt 0:00:39]} 29. g3 {[%emt 0:02:03]} Nh7 {[%emt 0:00:32]} 30. Rh1 {[%emt 0:00:49]} f5 {[%emt 0:00:28]} 31. Ng2 {[%emt 0:01:17]} g5 {[%emt 0:00:38]} 32. Qd2 {[%emt 0:04:19]} Ng6 {[%emt 0:01:16]} 33. f4 {[%emt 0:04:18]} Qf6 {[%emt 0:03:51]} 34. Qe3 {[%emt 0:02:55]} Kg7 {[%emt 0:01:26]} 35. Rhg1 {[%emt 0:00:52]} Rf7 {[%emt 0:01:39]} 36. Ref1 {[%emt 0:01:57]} Raf8 {[%emt 0:02:13]} 37. Rf2 {[%emt 0:01:30]} (37. Bh5 $1 $14) 37... Qd8 {[%emt 0:01:00]} 38. Rgf1 {[%emt 0:00:55]} Rf6 {[%emt 0:03:14]} 39. Qd2 {[%emt 0:01:37]} Ne7 {[%emt 0:01:13]} 40. Ne3 {[%emt 0:00:20]} Kg6 {[%emt 0:03:32]} 41. Qd1 {[%emt 0:00:55]} Qb6 {[%emt 0:00:41]} 42. Bb5 {[%emt 0:00:27]} h5 {[%emt 0:04:26]} 43. Re1 {[%emt 0:01:00]} R6f7 {[%emt 0:00:38]} (43... Kg7 $14) 44. Qe2 {[%emt 0:01:31]} (44. fxg5 $16 Nxg5 45. Ng2) 44... g4 {[%emt 0:00:33]} 45. h4 {[%emt 0:00:18]} Nf6 {[%emt 0:00:10]} 46. Qd1 {[%emt 0:00:51]} Ne8 {[%emt 0:01:46]} 47. Qc2 {[%emt 0:00:57]} Nc7 {[%emt 0:00:20]} 48. Bf1 {[%emt 0:00:35]} Ra8 {[%emt 0:00:59]} 49. Ra1 {[%emt 0:00:43]} Rff8 {[%emt 0:00:09]} 50. Ra3 {[%emt 0:00:57]} Qc6 {[%emt 0:00:27]} 51. Qb3 {[%emt 0:00:37]} Rfb8 {[%emt 0:01:02]} 52. Bb5 {[%emt 0:01:01]} Nxb5 {[%emt 0:00:24]} 53. axb5 {[%emt 0:00:08]} Qd7 {[%emt 0:01:33]} 54. Ra4 {[%emt 0:01:09]} Qe6 {[%emt 0:00:51]} 55. Rf1 {[%emt 0:00:16]} (55. Qa2 $11) 55... b6 {[%emt 0:01:10]} 56. Rc1 {[%emt 0:00:38]} Rc8 {[%emt 0:00:24]} 57. Rca1 {[%emt 0:00:29]} Ra7 {[%emt 0:00:13]} 58. Rc1 {[%emt 0:00:16]} Rac7 {[%emt 0:00:11]} 59. Rc2 {[%emt 0:00:38]} Kf6 {[%emt 0:00:25]} 60. Rc1 {[%emt 0:00:06]} Qg8 {[%emt 0:00:40]} 61. Rg1 {[%emt 0:00:24]} (61. Qa3 $1 $11) 61... Rb8 {[%emt 0:00:30]} 62. Rg2 {[%emt 0:00:08]} Ke6 {[%emt 0:00:16]} 63. Rc2 {[%emt 0:00:15]} Qc8 {[%emt 0:00:37]} 64. Rc1 $1 {[%emt 0:00:29]} Qb7 {[%emt 0:00:13]} 65. Rca1 {[%emt 0:00:17]} Qc8 {[%emt 0:01:30]} 66. Rc1 {[%emt 0:00:01]} Qd7 {[%emt 0:00:05]} 67. Rca1 {[%emt 0:00:17]} Rbc8 {[%emt 0:00:19]} 68. Rc1 {[%emt 0:00:06]} Qe8 $15 {[%emt 0:01:17]} 69. Rc2 {[%emt 0:00:13]} Qd7 {[%emt 0:00:36]} 70. Rc1 {[%emt 0:00:01]} 1/2-1/2

[Event "Torneio Nacional Honour 2017-18"]
[Site "Cascais"]
[Date "2018.08.13"]
[Round "4"]
[White "Goncalves, Carlos Manuel M"]
[Black "Santos, Ruben Jose Melo"]
[Result "0-1"]
[ECO "D02"]
[WhiteElo "1645"]
[BlackElo "1718"]
[Annotator "NA RC"]
[PlyCount "102"]
[EventDate "2018.08.11"]
[EventType "tourn"]
[EventCountry "POR"]
[SourceTitle "playchess.com"]
[Source "ChessBase"]
[SourceQuality "1"]
[TimeControl "5400+30"]

1. Nf3 {[%emt 0:00:00]} d5 {[%emt 0:00:00]} 2. d4 {[%emt 0:00:28]} Bf5 {[%emt 0:00:00]} 3. c4 {[%emt 0:02:32]} e6 {[%emt 0:01:53]} 4. Bf4 {[%emt 0:05:53]} Nf6 {[%emt 0:01:48]} 5. h3 {[%emt 0:00:45]} Nbd7 {[%emt 0:02:13]} 6. Qb3 {[%emt 0:07:07]} b6 {[%emt 0:04:02]} 7. cxd5 {[%emt 0:01:11]} Nxd5 {[%emt 0:00:03]} 8. Bh2 {[%emt 0:01:44]} Bb4+ {[%emt 0:03:28]} 9. Nbd2 {[%emt 0:00:16]} c5 {[%emt 0:00:34]} 10. e3 {[%emt 0:01:38]} O-O {[%emt 0:02:15]} 11. Bc4 {[%emt 0:04:01]} N7f6 {[%emt 0:09:16]} 12. O-O {[%emt 0:00:45]} Bxd2 {[%emt 0:02:04]} 13. Nxd2 {[%emt 0:02:26]} Ne7 {[%emt 0:14:13]} 14. Nf3 {[%emt 0:04:33]} Rc8 {[%emt 0:07:31]} 15. Rac1 {[%emt 0:07:24]} Nc6 {[%emt 0:06:11]} 16. dxc5 {[%emt 0:10:00]} Na5 {[%emt 0:00:26]} 17. Qa4 {[%emt 0:02:26]} Nxc4 {[%emt 0:03:27]} 18. Rxc4 {[%emt 0:00:16]} b5 {[%emt 0:01:16]} 19. Qxb5 {[%emt 0:00:37]} Bd3 {[%emt 0:00:05]} 20. Rfc1 {[%emt 0:02:34]} Bxc4 {[%emt 0:02:13]} 21. Qxc4 {[%emt 0:00:03]} Qa5 {[%emt 0:04:32]} 22. b4 {[%emt 0:08:42]} Qa4 {[%emt 0:01:19]} 23. Be5 {[%emt 0:13:19]} Nd5 {[%emt 0:01:02]} 24. c6 {[%emt 0:03:05]} f6 {[%emt 0:08:01]} 25. Bd4 {[%emt 0:00:09]} Qxb4 {[%emt 0:03:04]} 26. Qxb4 {[%emt 0:01:20]} Nxb4 {[%emt 0:00:13]} 27. c7 {[%emt 0:00:51]} Rf7 {[%emt 0:00:44]} 28. Rc4 {[%emt 0:02:51]} Nxa2 {[%emt 0:00:46]} 29. Ra4 {[%emt 0:00:02]} Nc1 {[%emt 0:00:02]} 30. Rxa7 {[%emt 0:00:48]} Rfxc7 {[%emt 0:00:36]} 31. Rxc7 {[%emt 0:00:37]} Rxc7 {[%emt 0:00:02]} 32. Ne1 {[%emt 0:03:32]} Ne2+ {[%emt 0:00:05]} 33. Kf1 {[%emt 0:00:31]} Nxd4 {[%emt 0:00:04]} 34. exd4 {[%emt 0:00:11]} Rc4 {[%emt 0:00:10]} 35. Nf3 {[%emt 0:00:03]} g5 {[%emt 0:00:10]} 36. Ke2 {[%emt 0:00:19]} h5 {[%emt 0:00:04]} 37. Kd3 {[%emt 0:00:22]} Ra4 {[%emt 0:00:03]} 38. g4 {[%emt 0:00:35]} h4 {[%emt 0:00:23]} 39. Ng1 {[%emt 0:01:16]} Kf7 {[%emt 0:00:20]} 40. Ne2 {[%emt 0:00:57]} Kg6 {[%emt 0:00:31]} 41. Ke4 {[%emt 0:03:30]} Ra2 {[%emt 0:00:31]} 42. Ke3 {[%emt 0:00:47]} f5 {[%emt 0:00:06]} 43. gxf5+ {[%emt 0:00:40]} Kxf5 {[%emt 0:00:02]} 44. Ng1 {[%emt 0:01:26]} Ra3+ {[%emt 0:00:54]} 45. Ke2 {[%emt 0:00:31]} Ke4 {[%emt 0:00:07]} 46. f3+ {[%emt 0:02:22]} Kf4 {[%emt 0:00:02]} 47. Kf2 {[%emt 0:00:27]} Ra2+ {[%emt 0:00:14]} 48. Ne2+ {[%emt 0:00:15]} Rxe2+ {[%emt 0:01:00]} 49. Kxe2 {[%emt 0:00:02]} Kg3 {[%emt 0:00:10]} 50. Ke3 {[%emt 0:00:44]} Kxh3 {[%emt 0:00:06]} 51. Kf2 {[%emt 0:00:59]} Kh2 {[%emt 0:00:02]} 0-1

[Event "Torneio Nacional Honour 2017-18"]
[Site "Cascais"]
[Date "2018.08.14"]
[Round "5"]
[White "Marques, Pedro"]
[Black "Horta, Antonio"]
[Result "1-0"]
[ECO "D35"]
[WhiteElo "1862"]
[BlackElo "1912"]
[Annotator "NA"]
[PlyCount "69"]
[EventDate "2018.08.11"]
[EventType "tourn"]
[EventCountry "POR"]
[SourceTitle "playchess.com"]
[Source "ChessBase"]
[SourceQuality "1"]
[TimeControl "5400+30"]

1. c4 {[%emt 0:11:06]} e6 {[%emt 0:00:38]} 2. Nc3 {[%emt 0:01:22]} d5 {[%emt 0:01:27]} 3. d4 {[%emt 0:02:40]} Nf6 {[%emt 0:02:15]} 4. cxd5 {[%emt 0:00:23]} exd5 {[%emt 0:01:05]} 5. Bg5 {[%emt 0:00:09]} Be7 {[%emt 0:01:07]} 6. e3 {[%emt 0:00:28]} O-O {[%emt 0:08:02]} 7. Bd3 {[%emt 0:02:21]} c6 {[%emt 0:07:05]} 8. Qc2 {[%emt 0:02:02]} Nbd7 {[%emt 0:08:32]} 9. Nf3 {[%emt 0:02:50]} Re8 {[%emt 0:00:05]} 10. O-O {[%emt 0:03:51]} g6 {[%emt 0:05:00]} 11. Bf4 {[%emt 0:20:26]} Nf8 {[%emt 0:02:49]} 12. Rab1 {[%emt 0:07:20]} Ne6 {[%emt 0:04:09]} 13. Bg3 {[%emt 0:02:31]} Ng7 {[%emt 0:00:55]} 14. b4 {[%emt 0:03:42]} a6 {[%emt 0:03:38]} 15. Ne5 {[%emt 0:04:06]} Nf5 {[%emt 0:03:37]} 16. Bf4 {[%emt 0:04:44]} Nh5 {[%emt 0:01:45]} 17. Ne2 {[%emt 0:05:22]} Nxf4 {[%emt 0:02:17]} 18. exf4 {[%emt 0:05:28]} Bd6 {[%emt 0:07:04]} 19. a4 {[%emt 0:06:18]} Qe7 {[%emt 0:02:31]} 20. b5 {[%emt 0:01:56]} axb5 {[%emt 0:00:05]} 21. axb5 {[%emt 0:00:05]} c5 {[%emt 0:06:38]} 22. dxc5 {[%emt 0:00:30]} Bxc5 {[%emt 0:03:39]} 23. Ng3 {[%emt 0:05:28]} Nd4 {[%emt 0:03:20]} 24. Qb2 {[%emt 0:02:12]} Ne6 {[%emt 0:00:35]} 25. Ng4 {[%emt 0:01:42]} Bd4 {[%emt 0:00:26]} 26. Qd2 {[%emt 0:00:17]} Qh4 {[%emt 0:00:50]} 27. f5 {[%emt 0:02:11]} Qxg4 {[%emt 0:00:26]} 28. fxe6 {[%emt 0:00:15]} Bxe6 {[%emt 0:00:17]} 29. Rb4 {[%emt 0:00:29]} Rac8 {[%emt 0:15:54]} 30. Be2 {[%emt 0:00:58]} Bc3 {[%emt 0:02:00]} 31. Qxc3 {[%emt 0:00:12]} Qg5 {[%emt 0:00:11]} 32. Qd4 {[%emt 0:00:39]} h5 {[%emt 0:00:35]} 33. Bf3 {[%emt 0:00:38]} h4 {[%emt 0:00:29]} 34. Qxh4 {[%emt 0:00:13]} Qd2 {[%emt 0:00:05]} 35. Rd4 {[%emt 0:00:23]} 1-0

[Event "Torneio Nacional Honour 2017-18"]
[Site "Cascais"]
[Date "2018.08.14"]
[Round "5"]
[White "Lavrador, Rodolfo Manuel"]
[Black "Goncalves, Carlos"]
[Result "0-1"]
[ECO "B01"]
[WhiteElo "1859"]
[BlackElo "1645"]
[Annotator "NA"]
[PlyCount "156"]
[EventDate "2018.08.11"]
[EventType "tourn"]
[EventCountry "POR"]
[SourceTitle "playchess.com"]
[Source "ChessBase"]
[SourceQuality "1"]
[TimeControl "5400+30"]

1. e4 {[%emt 0:00:00]} d5 {[%emt 0:00:00]} 2. exd5 {[%emt 0:00:00]} Qxd5 {[%emt 0:00:03]} 3. Nc3 {[%emt 0:00:00]} Qd6 {[%emt 0:00:06]} 4. Nf3 {[%emt 0:00:46]} Nf6 {[%emt 0:00:27]} 5. d4 {[%emt 0:02:29]} c6 {[%emt 0:00:22]} 6. Be2 {[%emt 0:01:55]} Bf5 {[%emt 0:00:43]} 7. O-O {[%emt 0:05:48]} e6 {[%emt 0:00:33]} 8. Re1 {[%emt 0:02:00]} h6 {[%emt 0:01:39]} 9. h3 {[%emt 0:08:09]} Be7 {[%emt 0:01:18]} 10. Be3 {[%emt 0:03:18]} O-O {[%emt 0:02:58]} 11. Qd2 {[%emt 0:00:40]} Qc7 {[%emt 0:00:10]} 12. Bd3 {[%emt 0:06:28]} Bxd3 {[%emt 0:00:57]} 13. Qxd3 {[%emt 0:00:36]} Nbd7 {[%emt 0:01:54]} 14. Ne2 {[%emt 0:03:57]} Nb6 {[%emt 0:03:22]} 15. c4 {[%emt 0:03:25]} Rad8 {[%emt 0:01:47]} 16. Bf4 {[%emt 0:10:22]} Qc8 {[%emt 0:01:07]} 17. Rac1 {[%emt 0:02:48]} c5 {[%emt 0:05:37]} 18. Qa3 {[%emt 0:03:46]} Rfe8 {[%emt 0:02:40]} 19. Qxa7 {[%emt 0:01:15]} Nfd7 {[%emt 0:01:51]} 20. Qa5 {[%emt 0:03:33]} Qc6 {[%emt 0:00:25]} 21. dxc5 {[%emt 0:07:02]} Bxc5 {[%emt 0:01:25]} 22. Qb5 {[%emt 0:02:55]} Rc8 {[%emt 0:04:26]} 23. Qxc6 {[%emt 0:04:26]} Rxc6 {[%emt 0:00:02]} 24. Red1 {[%emt 0:00:54]} e5 {[%emt 0:03:10]} 25. Bd2 {[%emt 0:02:15]} Nxc4 {[%emt 0:03:19]} 26. Bc3 {[%emt 0:02:01]} Ncb6 {[%emt 0:03:24]} 27. Kf1 {[%emt 0:02:10]} f6 {[%emt 0:02:45]} 28. a4 {[%emt 0:00:50]} Nf8 {[%emt 0:04:07]} 29. b3 {[%emt 0:02:03]} Be7 {[%emt 0:02:32]} 30. Ba5 {[%emt 0:02:43]} Rxc1 {[%emt 0:02:58]} 31. Rxc1 {[%emt 0:00:12]} Nd5 {[%emt 0:00:08]} 32. Ng3 {[%emt 0:01:58]} g6 {[%emt 0:00:47]} 33. Bd2 {[%emt 0:02:18]} h5 {[%emt 0:02:07]} 34. Ne2 {[%emt 0:01:44]} Ne6 {[%emt 0:00:28]} 35. g3 {[%emt 0:00:27]} Kf7 {[%emt 0:01:11]} 36. Nc3 {[%emt 0:00:59]} Rd8 {[%emt 0:02:53]} 37. Nb5 {[%emt 0:01:08]} Bb4 {[%emt 0:05:29]} 38. Bxb4 {[%emt 0:04:51]} Nxb4 {[%emt 0:00:02]} 39. Ke2 {[%emt 0:00:43]} Rd3 {[%emt 0:03:41]} 40. Nd2 {[%emt 0:00:52]} Rd7 {[%emt 0:00:40]} 41. Nc4 {[%emt 0:00:34]} Nd4+ {[%emt 0:02:12]} 42. Nxd4 {[%emt 0:00:17]} Rxd4 {[%emt 0:01:12]} 43. Rd1 {[%emt 0:01:09]} Nc6 {[%emt 0:02:56]} 44. Nd6+ {[%emt 0:01:06]} Ke7 {[%emt 0:01:42]} 45. Nxb7 {[%emt 0:00:35]} Rb4 {[%emt 0:00:13]} 46. Nc5 {[%emt 0:01:15]} Nd4+ {[%emt 0:00:04]} 47. Kf1 {[%emt 0:01:33]} Nxb3 {[%emt 0:01:03]} 48. Nxb3 {[%emt 0:00:40]} Rxb3 {[%emt 0:00:02]} 49. Ra1 {[%emt 0:00:14]} Kd7 {[%emt 0:00:29]} 50. h4 {[%emt 0:00:53]} Kc7 {[%emt 0:01:32]} 51. a5 {[%emt 0:00:23]} Kb7 {[%emt 0:01:59]} 52. a6+ {[%emt 0:00:28]} Ka7 {[%emt 0:00:19]} 53. Ke2 {[%emt 0:00:29]} Rb6 {[%emt 0:01:00]} 54. Kd3 {[%emt 0:00:27]} f5 {[%emt 0:01:00]} 55. Ra2 {[%emt 0:00:14]} Rxa6 {[%emt 0:04:22]} 56. Rxa6+ {[%emt 0:00:13]} Kxa6 {[%emt 0:00:05]} 57. Kc4 {[%emt 0:00:06]} Kb6 {[%emt 0:00:09]} 58. Kd5 {[%emt 0:00:06]} e4 {[%emt 0:00:14]} 59. Kd6 {[%emt 0:01:53]} Kb5 {[%emt 0:00:27]} 60. Kd5 {[%emt 0:00:22]} Kb4 {[%emt 0:00:10]} 61. Kd4 {[%emt 0:00:27]} Kb3 {[%emt 0:00:02]} 62. Ke5 {[%emt 0:00:18]} Kc3 {[%emt 0:01:34]} 63. Kf6 {[%emt 0:01:28]} Kd3 {[%emt 0:03:12]} 64. Kxg6 {[%emt 0:00:12]} Ke2 {[%emt 0:00:14]} 65. Kxh5 {[%emt 0:00:18]} Kxf2 {[%emt 0:00:22]} 66. Kg6 {[%emt 0:00:11]} e3 {[%emt 0:00:21]} 67. h5 {[%emt 0:00:07]} e2 {[%emt 0:01:12]} 68. Kxf5 {[%emt 0:00:23]} Kxg3 {[%emt 0:00:14]} 69. h6 {[%emt 0:00:41]} e1=Q 70. Kg6 {[%emt 0:00:12]} Qe6+ {[%emt 0:01:22]} 71. Kg7 {[%emt 0:00:11]} Qg4+ {[%emt 0:01:05]} 72. Kh8 {[%emt 0:00:59]} Qd4+ {[%emt 0:01:04]} 73. Kg8 {[%emt 0:00:34]} Qd5+ {[%emt 0:00:13]} 74. Kg7 {[%emt 0:00:45]} Qe5+ {[%emt 0:00:10]} 75. Kg8 {[%emt 0:00:31]} Qe6+ {[%emt 0:00:12]} 76. Kg7 {[%emt 0:00:13]} Qe5+ {[%emt 0:02:57]} 77. Kg8 {[%emt 0:00:37]} Qg5+ {[%emt 0:00:25]} 78. Kh7 {[%emt 0:00:24]} Kf4 0-1